Cogmind - Beta 15 @@@ ROGUE MODE // 2025.05.13 @ 12:02:51 Player: Sunvar Result: Self-destructed Performance ------------- Evolutions (6) 3000 Regions Visited (9) 1800 Robots Destroyed (152) 760 Value Destroyed (5215) 5215 Prototype IDs (30) 600 Alien Tech Used (0) 0 Bonus (2195) 2195 TOTAL SCORE: 13570 Bonus ------- High Alert Combat Kills 1008 Follower Combat Kills 387 Registered with UFD 300 Met Optimus in HQ 500 Cogmind --------- Core Integrity 1132/1150 Matter 300/300 Energy 207/210 System Corruption 0% Temperature Cool (2) Movement Hovering (38) Location -4/Factory Parts ------- > --- POWER (2+1) ------ Light Nuclear Core Light Angular Momentum Engine (+) > --- PROPULSION (6) --- Gyrokinetic Inverter Cooled Gravmag System Cooled Gravmag System Cooled Gravmag System Cooled Gravmag System > --- UTILITY (9) ------ Advanced Melee Analysis Suite Advanced Melee Analysis Suite Advanced Melee Analysis Suite Microactuators Advanced Reaction Control System Layered Heavy Armor Plating Hardlight Generator Power Bank > --- WEAPON (2) ------- Hammer Shock Maul > --- INVENTORY (5) ---- Improved Recalibrator Advanced Plasma Cannon Long-range Missile Launcher CPS Tube (2) DRS Beacon (Ready) Peak State ------------ > --- POWER ------------ Light Nuclear Core Light Angular Momentum Engine Light Angular Momentum Engine Enhanced Fission Core > --- PROPULSION ------- Cooled Aerolev Unit Gyrokinetic Inverter Cooled Gravmag System Cooled Gravmag System Cooled Gravmag System Cooled Gravmag System > --- UTILITY ---------- Advanced Melee Analysis Suite Advanced Melee Analysis Suite Advanced Melee Analysis Suite Advanced Melee Analysis Suite Improved Utility Shielding Layered Heavy Armor Plating Power Bank > --- WEAPON ----------- Hammer Shock Maul > --- INVENTORY -------- Layered Heavy Armor Plating Long-range Missile Launcher CPS Tube DRS Beacon [Rating: 113] Favorites ----------- Power Makeshift Power Source Engine Makeshift Power Source Power Core Fission Core Propulsion Wheel Treads Light Treads Leg Enhanced Flexi-carbon Leg Wheel Wheel Hover Unit Cooled Gravmag System Flight Unit Cesium-ion Thruster Utility Huge Storage Unit Device Improved Cooling System Storage Huge Storage Unit Processor Advanced Melee Analysis Suite Hackware Hacking Suite Protection Core Shielding Weapon Improved Light Cannon Energy Gun Improved Heavy Laser Energy Cannon Plasma Cannon Ballistic Gun Shotgun Ballistic Cannon Improved Light Cannon Launcher Scatter Rocket Array Special Weapon Mining Laser Impact Weapon Shock Maul Slashing Weapon Great Axe Build | -11 -10 -10 -9 -9 -6 -6 -6 -5 -4 ------- Run | Yrd Mat Sub Rec Scr Fac Was Fac Fac Fac Slots Evolved 12 | . . . . . 8 . . 2 2 Power 1 | . . . . . . . . . 1 Propulsion 4 | . . . . . 2 . . 2 . Utility 7 | . . . . . 6 . . . 1 Weapon . | . . . . . . . . . . Parts Attached 136 | 7 13 14 2 3 46 1 21 26 3 Power 16 | 1 3 3 . 1 2 . 1 4 1 Engine 12 | 1 3 3 . 1 1 . 1 2 . Core 4 | . . . . . 1 . . 2 1 Reactor . | . . . . . . . . . . Propulsion 32 | 2 1 6 . . 10 1 4 8 . Treads 11 | 2 . 3 . . 6 . . . . Leg 2 | . . . . . . 1 . 1 . Wheel 11 | . 1 3 . . 4 . 3 . . Hover 6 | . . . . . . . . 6 . Flight 2 | . . . . . . . 1 1 . Utility 56 | 2 5 1 . 1 20 . 13 12 2 Device 22 | 1 1 . . . 9 . 4 6 1 Storage 4 | 1 3 . . . . . . . . Processor 12 | . . . . . 3 . 5 4 . Hackware 5 | . . . . . 3 . 2 . . Protection 13 | . 1 1 . 1 5 . 2 2 1 Artifact . | . . . . . . . . . . Weapon 32 | 2 4 4 2 1 14 . 3 2 . Energy Gun 5 | . . . . . 5 . . . . Energy Cannon 4 | . . . . 1 2 . 1 . . Ballistic Gun 9 | 2 4 3 . . . . . . . Ballistic Cannon 5 | . . . 2 . 1 . 1 1 . Launcher 2 | . . . . . 2 . . . . Special Weapon 1 | . . 1 . . . . . . . Impact Weapon 4 | . . . . . 2 . 1 1 . Slashing Weapon 2 | . . . . . 2 . . . . Piercing Weapon . | . . . . . . . . . . Special Melee Weapon . | . . . . . . . . . . Unidentified Prototypes 13 | . . . . . 8 . . 5 . Corrupted Parts 1 | . . . . . . . . 1 . System Corruption 10 | . . . . . . . . 10 . Parts Lost 40 | . 2 4 . 1 12 6 3 12 . Power 8 | . 1 1 . 1 1 . . 4 . Propulsion 16 | . . 2 . . 5 4 1 4 . Utility 12 | . 1 . . . 5 1 2 3 . Weapon 4 | . . 1 . . 1 1 . 1 . Highest Loss Streak 6 | . 1 2 . 1 3 5 1 6 . To Critical Strikes 1 | . . . . . . 1 . . . Average Backups 18 | 2 12 24 24 21 21 11 4 3 3 Power 1 | . 1 1 2 . 1 1 . . . Propulsion 3 | 1 3 5 4 4 3 1 . . . Utility 7 | . 1 8 10 9 9 3 1 1 . Weapon 5 | . 5 8 8 5 5 3 1 1 1 Tool/Special . | . . . . . . . . . . Unused Backups 63 | . 9 5 . 14 18 10 1 2 4 Power 10 | . 2 1 . 2 3 2 . . . Propulsion 6 | . 1 . . . 2 2 . 1 . Utility 18 | . 1 . . 4 9 2 . 1 1 Weapon 26 | . 5 4 . 8 3 3 1 . 2 Tool/Special 3 | . . . . . 1 1 . . 1 Average Slot Usage (%) 93 | . 99 99 99 99 87 47 73 90 77 Engine 9 | . 13 14 14 13 4 . 2 5 5 Treads 13 | . 24 14 14 14 15 9 . . . Wheel 10 | . 3 13 14 14 7 . 11 9 . Hover 1 | . . . . . . . . 15 22 Device 5 | . 10 . . . 10 10 9 7 19 Storage 9 | . 14 14 14 14 6 3 . . . Processor 6 | . . . . . 13 7 20 20 15 Hackware 1 | . . . . . 3 . 7 3 . Protection 9 | . 3 14 14 14 7 2 7 8 5 Energy Cannon 3 | . . . . 3 9 6 1 1 . Ballistic Gun 6 | . 27 19 1 . . . . . . Ballistic Cannon 7 | . . . 24 24 . . 2 1 . Special Weapon 1 | . . 7 1 . . . . . . Impact Weapon 1 | . . . . . . . 5 6 10 Peak Build Rating 113 | 7 14 19 18 25 66 55 56 113 101 Average Rating 35 | 5 10 15 17 19 55 27 45 86 94 On Entrance 27 | . 7 13 17 18 25 55 2 56 79 Naked Turns 39 | . . . . . . 33 6 . . Heaviest Build 127 | 12 94 98 93 102 127 112 38 68 52 Greatest Support 96 | 40 40 20 10 10 96 76 52 88 70 Greatest Overweight (x) 12 | . 9 9 9 10 12 10 1 1 . Average Overweight (x) 4 | . 1 8 8 9 4 . . . . Largest Inventory Capacity 25 | 8 25 25 25 25 25 25 5 5 5 Average Capacity 20 | 7 14 25 25 25 25 14 5 5 5 Most Carried 25 | 4 25 25 25 25 25 20 5 5 5 Average Carried 19 | 2 12 24 24 22 23 11 4 4 4 Final Capacity 25 | 8 25 25 25 25 25 5 5 5 5 Final Carried 25 | 4 25 24 25 25 20 5 5 5 5 Class Distribution -------------------- 76% | Mutant 15% | Scavenger-Mutant 3% | Gladiator Dominant Class ---------------- Mutant | -10/Materials Mutant | -10/Subcaves Mutant | -9/Recycling Mutant | -9/Scraptown Scavenger-Mutant | -6/Factory Mutant | -6/Waste Mutant | -6/Factory Mutant | -5/Factory Gladiator | -4/Factory Resources | -11 -10 -10 -9 -9 -6 -6 -6 -5 -4 ----------- Run | Yrd Mat Sub Rec Scr Fac Was Fac Fac Fac Matter Collected 3324 | 279 433 448 98 37 1188 35 360 401 45 Remotely . | . . . . . . . . . . Salvage Created 5749 | 79 631 343 62 . 3054 . 562 927 91 Parts 221 | 9 45 21 5 . 100 . 15 20 6 Haulers Intercepted 9 | . 2 . . . 4 . 2 1 . Recyclers Shooed . | . . . . . . . . . . Parts Field Recycled . | . . . . . . . . . . Retrieved Matter . | . . . . . . . . . . Parts Self-Destructed 19 | . . 19 . . . . . . . Prevented . | . . . . . . . . . . Kills | -11 -10 -10 -9 -9 -6 -6 -6 -5 -4 ------- Run | Yrd Mat Sub Rec Scr Fac Was Fac Fac Fac Combat Hostiles Destroyed 105 | . 13 10 2 . 50 . 10 16 4 Melee 10 | . . . . . . . 2 5 3 Guns 27 | . 13 10 . . 4 . . . . Cannons 34 | . . . 2 . 25 . 7 . . AOE 18 | . . . . . 18 . . . . Classes Destroyed 18 | 1 6 3 . . 8 . . . . Worker 11 | . . . . . 9 . . 2 . Builder 4 | . . . . . 3 . . 1 . Tunneler 5 | 3 1 . . . . . 1 . . Hauler 9 | . 2 . . . 4 . 2 1 . Recycler 5 | . 2 . . . 2 . . 1 . Mechanic 5 | . . . . . 4 . . 1 . Operator 1 | . 1 . . . . . . . . Turret 2 | . . 2 . . . . . . . Watcher 3 | . 2 . . . . . 1 . . Swarmer 31 | . 8 5 . . 2 . 4 8 4 Grunt 46 | . 5 . . . 32 . 3 6 . Brawler 3 | . . . . . 3 . . . . Duelist 4 | . . . . . 4 . . . . Protector 2 | . . . . . 2 . . . . Sentry 6 | . . 1 2 . 2 . 1 . . Hunter 1 | . . . . . 1 . . . . Programmer 10 | . . . . . 6 . 2 2 . Subdweller 4 | . . 4 . . . . . . . Best Kill Streak 15 | 3 6 4 1 . 15 . 3 7 4 Combat Bots Only 7 | . 5 4 1 . 7 . 3 7 4 Max Kills in Single Turn 7 | 1 1 1 1 . 7 . 1 1 1 Gunslinging . | . . . . . . . . . . Exploded 4 | . . . . . 4 . . . . Melee 1 | . . . . . . . 1 1 1 Uniques/NPCs Destroyed . | . . . . . . . . . . Combat | -11 -10 -10 -9 -9 -6 -6 -6 -5 -4 -------- Run | Yrd Mat Sub Rec Scr Fac Was Fac Fac Fac Hostile Shots Fired 822 | . 85 131 8 2 293 3 68 217 15 Missed 267 | . 17 40 . 1 112 . 21 70 6 Hits 555 | . 68 91 8 1 181 3 47 147 9 Melee 8 | . . . . . 5 3 . . . Projectile 547 | . 68 91 8 1 176 . 47 147 9 AOE 3 | . . . . . . . . 3 . Critical Strikes 20 | . . 2 1 . 12 2 . 3 . Damage Taken 9173 | . 637 925 116 8 3560 152 719 2912 144 Core 1176 | . 123 85 38 . 266 54 237 355 18 Absorbed by Shields 411 | . . . . 2 314 . . 95 . Redirected to Shielding 116 | . . . 8 . . . . 108 . Regen/Repaired (Parts) 308 | . 94 . . . . . 110 . 104 Core Remaining (%) 49 | 100 . . . 1 . . 34 64 . Volleys Fired 299 | 5 65 63 7 4 127 6 21 1 . Largest 2 | 2 2 2 2 2 2 2 2 1 . Hottest 160 | 40 46 123 66 113 160 160 130 47 . Shots Fired 535 | 10 130 97 14 7 240 11 25 1 . Gun 241 | 10 130 68 . . 33 . . . . Cannon 258 | . . . 14 7 200 11 25 1 . Launcher 7 | . . . . . 7 . . . . Special 29 | . . 29 . . . . . . . Kinetic 245 | 10 130 68 14 3 . . 19 1 . Thermal 261 | . . 29 . 4 211 11 6 . . Explosive 7 | . . . . . 7 . . . . Electromagnetic 22 | . . . . . 22 . . . . Robot Hit Streak 15 | 3 8 11 10 7 15 2 11 . . Robot Miss Streak 13 | 1 13 5 1 1 7 2 2 1 . Penetration Max . | . . . . . . . . . . Secondary Targets 3 | . . 2 . . 1 . . . . Max Gunslinging Chain 1 | . . 1 . . 1 . . . . Shots Hit Robots 392 | 7 78 51 11 3 155 6 31 46 4 Core Hits 296 | 5 37 23 2 . 209 2 11 5 2 Critical Kills 9 | . . 1 . . 2 . 1 3 2 Critical Parts Destroyed 16 | . . . . . . . 4 11 1 Critical Strikes 26 | . . 1 . . 3 . 5 14 3 Meltdown 2 | . . . . . 2 . . . . Destroy 1 | . . 1 . . . . . . . Corrupt 1 | . . . . . 1 . . . . Smash 22 | . . . . . . . 5 14 3 Melee Attacks 141 | . . . . . 26 . 24 82 9 Impact 122 | . . . . . 7 . 24 82 9 Slashing 19 | . . . . . 19 . . . . Piercing . | . . . . . . . . . . Sneak Attacks 11 | . . . . . 2 . 3 6 . Combat Hostiles . | . . . . . . . . . . Follow-up Attacks 5 | . . . . . . . . 5 . Damage Inflicted 15816 | 78 912 765 231 73 8895 252 1408 2972 230 Guns 2325 | 78 908 765 . . 574 . . . . Cannons 4433 | . . . 231 73 3388 252 489 . . Explosions 4744 | . . . . . 4744 . . . . Melee 4295 | . . . . . 174 . 919 2972 230 Ramming 19 | . 4 . . . 15 . . . . Kinetic 2424 | 78 908 765 231 24 . . 418 . . Thermal 4067 | . . . . 49 3695 252 71 . . Explosive 4666 | . . . . . 4666 . . . . Electromagnetic 345 | . . . . . 345 . . . . Impact 4121 | . . . . . . . 919 2972 230 Slashing 174 | . . . . . 174 . . . . Piercing . | . . . . . . . . . . Highest Corruption 20 | . . . . . 3 19 20 17 . Average Corruption 13 | . . . . . 2 9 19 11 . Corruption Purged . | . . . . . . . . . . Corruption Blocked . | . . . . . . . . . . Effects 77 | . . . . . 7 4 42 24 . Message Errors 17 | . . . . . 1 . 11 5 . Matter Fused 17 | . . . . . 1 3 7 6 . Heat Flow Errors 11 | . . . . . 2 . 4 5 . Energy Discharges 10 | . . . . . . . 8 2 . Parts Rejected 2 | . . . . . . . 2 . . Data Loss (minor) 9 | . . . . . 2 . 4 3 . Data Loss (major) 4 | . . . . . . . 3 1 . Alerts 1 | . . . . . . . 1 . . Misdirections 4 | . . . . . . 1 1 2 . Weapon Failures 2 | . . . . . 1 . 1 . . Overload Shots . | . . . . . . . . . . Overflow Damage 1830 | . . . 5 . 164 . 391 1164 106 Projectiles 59 | . . . 5 . 34 . 20 . . Explosions 130 | . . . . . 130 . . . . Melee 1641 | . . . . . . . 371 1164 106 Knockbacks 14 | . . . . . . . 4 9 1 Impact 11 | . . . . . . . 1 9 1 Kinetic 3 | . . . . . . . 3 . . Secondary . | . . . . . . . . . . Self-Inflicted Damage 671 | . 1 . . . 670 . . . . Shots 26 | . . . . . 26 . . . . Rammed 4 | . 2 . . . 2 . . . . Targets Rammed 4 | . 2 . . . 2 . . . . Kicked . | . . . . . . . . . . Crushed . | . . . . . . . . . . Highest Temperature 336 | . 12 18 99 108 307 188 212 336 . Average Temperature 79 | . 7 8 45 44 66 102 66 107 . Received Heat Transfer 2010 | . 162 366 54 . 1017 . 171 240 . Effects 2 | . . . . . . . . 2 . Shutdowns 1 | . . . . . . . . 1 . Interference 1 | . . . . . . . . 1 . Siege Activations . | . . . . . . . . . . Martial Activations . | . . . . . . . . . . Shielding Activations . | . . . . . . . . . . Robots Disrupted . | . . . . . . . . . . Combat Hostiles . | . . . . . . . . . . Robots Corrupted 18 | . . . . . . . 4 13 1 Combat Hostiles 13 | . . . . . . . 1 11 1 Parts Fried 18 | . . . . . 3 . 6 7 2 Impact Corruptions 48 | . . . . . . . 10 36 2 Robots Melted 4 | . . . . . 4 . . . . Combat Hostiles 3 | . . . . . 3 . . . . Parts Melted 23 | . . . . . 23 . . . . Heat Transferred 7415 | . . . . 100 6715 500 100 . . Parts Sabotaged . | . . . . . . . . . . Parts Stolen . | . . . . . . . . . . Parts Stripped . | . . . . . . . . . . Power Chain Reactions 1 | . . . . . 1 . . . . Alert | -11 -10 -10 -9 -9 -6 -6 -6 -5 -4 ------- Run | Yrd Mat Sub Rec Scr Fac Was Fac Fac Fac Maximum Alert Level 4 | . . . . . 4 2 1 1 . Low Security (%) 78 | 100 100 . 100 . 66 . 80 75 100 Level 1 9 | . . . . . 7 52 19 24 . Level 2 1 | . . . . . 1 48 . . . Level 3 4 | . . . . . 9 . . . . Level 4 6 | . . . . . 14 . . . . Level 5 . | . . . . . . . . . . High Security . | . . . . . . . . . . Max Security . | . . . . . . . . . . Peak Influence 1406 | 15 113 . 66 . 1406 491 245 287 168 Initial 491 | . . . . . . 491 245 81 140 Average 196 | 1 28 . 4 . 335 420 180 127 126 Influence Increases 4242 | 15 396 220 120 . 2309 . 327 757 98 Destroy 0b10 Robot/C 2300 | . 260 160 100 . 1180 . 200 320 80 Destroy 0b10 Robot/NC 220 | 15 40 . . . 115 . 20 30 . Destroy Leader 414 | . 68 . . . 238 . 56 42 10 Allied During Kill 82 | . . . 6 . 76 . . . . Successful Hack 108 | . 13 . 13 . 24 . 22 30 6 Disable Machine 300 | . . . . . 285 . . 15 . Anti-Garrison Action 150 | . . . . . 150 . . . . Destroy Structure 233 | . . . 1 . 166 . 14 50 2 Partial Spotted 15 | . . . . . . . . 15 . Lose Combat Pursuer 420 | . 15 60 . . 75 . 15 255 . Influence Decreases 4094 | 15 396 220 78 42 905 1053 510 639 236 Entered New Map 1294 | . . . . 42 . 913 106 87 146 Time Decay 1970 | 15 376 190 78 . 395 60 374 392 90 Lost Part 375 | . 20 30 . . 115 60 30 120 . Lost Ally 80 | . . . . . 20 20 . 40 . Purge Threat 375 | . . . . . 375 . . . . Squads Dispatched 35 | . 2 . . . 17 . 5 10 1 Investigation 8 | . 1 . . . 4 . 1 1 1 Extermination 11 | . . . . . 6 . 2 3 . Reinforcement 8 | . 1 . . . 2 . 2 3 . Assault 5 | . . . . . 5 . . . . Garrison 3 | . . . . . . . . 3 . Intercept . | . . . . . . . . . . Searches Triggered . | . . . . . . . . . . Construction Impeded . | . . . . . . . . . . Haulers Reinforced 2 | . . . . . 1 . 1 . . Active Scanning Responses . | . . . . . . . . . . Cargo Convoy Interrupts . | . . . . . . . . . . Stealth | -11 -10 -10 -9 -9 -6 -6 -6 -5 -4 --------- Run | Yrd Mat Sub Rec Scr Fac Was Fac Fac Fac Distress Signals 3 | . 1 . . . 2 . . . . Communications Jammed 11 | . . . . . 11 . . . . Distress Signals 11 | . . . . . 11 . . . . Times Spotted 208 | . 25 14 2 6 75 6 15 56 9 Peak Tracking Total 15 | . 5 4 1 3 8 6 4 15 7 Tactical Retreats 15 | . 1 2 . . 5 . 1 6 . Traps | -11 -10 -10 -9 -9 -6 -6 -6 -5 -4 ------- Run | Yrd Mat Sub Rec Scr Fac Was Fac Fac Fac Traps Triggered 10 | . . . . . 4 . 1 5 . Indirectly 1 | . . . . . 1 . . . . Trap Hack Attempts . | . . . . . . . . . . Triggered . | . . . . . . . . . . Disarmed 6 | . 6 . . . . . . . . Reprogrammed . | . . . . . . . . . . Reused . | . . . . . . . . . . Traps Extracted . | . . . . . . . . . . Installed . | . . . . . . . . . . Triggered . | . . . . . . . . . . Machines | -11 -10 -10 -9 -9 -6 -6 -6 -5 -4 ---------- Run | Yrd Mat Sub Rec Scr Fac Was Fac Fac Fac Machines Disabled 23 | . . 1 . 1 20 . . 1 . Max in Single Turn 7 | . . 1 . 1 7 . . 1 . Garrison Access 2 | . . . . . 2 . . . . Machines Repaired . | . . . . . . . . . . Machines Dismantled . | . . . . . . . . . . Machines Sabotaged . | . . . . . . . . . . Overloaded Fab Kills . | . . . . . . . . . . Hacking | -11 -10 -10 -9 -9 -6 -6 -6 -5 -4 --------- Run | Yrd Mat Sub Rec Scr Fac Was Fac Fac Fac Machines Accessed 48 | . 7 1 2 7 13 . 6 9 3 Terminals 20 | . 6 . 2 . 7 . 2 3 . Fabricators 3 | . . . . . 1 . 1 1 . Repair Stations 7 | . 1 . . . 2 . 2 1 1 Recycling Units 6 | . . . . . 1 . 1 3 1 Scanalyzers . | . . . . . . . . . . Garrison Access 4 | . . . . . 2 . . 1 1 Total Hacks 138 | . 22 1 4 42 30 . 15 19 5 Successful 89 | . 12 1 2 42 13 . 8 8 3 Failed 49 | . 10 . 2 . 17 . 7 11 2 Catastrophic 11 | . . . 2 . 5 . . 3 1 Database Lockouts . | . . . . . . . . . . Manual 35 | . 9 . 3 . 12 . 7 4 . Terminals 54 | . 18 . 4 . 17 . 7 8 . Fabricators 6 | . . . . . 3 . 2 1 . Repair Stations 18 | . 4 . . . 5 . 5 2 2 Recycling Units 10 | . . . . . 2 . 1 6 1 Scanalyzers . | . . . . . . . . . . Garrison Access 7 | . . . . . 3 . . 2 2 Terminal Hacks 60 | . 7 1 1 42 4 . 3 2 . Record 37 | . . . . 37 . . . . . Robot Analysis 4 | . . . . 4 . . . . . Level Access Points 1 | . . . . . . . 1 . . Branch Access Points 3 | . . . 1 . . . 1 1 . Terminal Index 1 | . 1 . . . . . . . . Unreport Threat 4 | . . . . . 4 . . . . Locate Traps 3 | . 2 . . . . . . 1 . Disarm Traps 1 | . 1 . . . . . . . . Hauler Manifests 2 | . 2 . . . . . . . . Registered Components 1 | . 1 . . . . . . . . Registered Prototypes 1 | . . . . . . . 1 . . Proto ID Catalog 2 | . . 1 . 1 . . . . . Fabricator Hacks 1 | . . . . . 1 . . . . Network Status 1 | . . . . . 1 . . . . Repair Station Hacks 9 | . 2 . . . 2 . 2 1 2 Scan Component 6 | . 1 . . . 2 . 1 1 1 Repair 3 | . 1 . . . . . 1 . 1 Recycling Unit Hacks 4 | . . . . . . . . 3 1 Report Inventory 4 | . . . . . . . . 3 1 Scanalyzer . | . . . . . . . . . . Garrison Access Hacks 1 | . . . . . 1 . . . . Seal Access 1 | . . . . . 1 . . . . Unauthorized Hacks 13 | . 3 . 1 . 4 . 3 2 . Terminals 8 | . 3 . 1 . 2 . 1 1 . Botnet 8 | . 3 . 1 . 2 . 1 1 . Fabricators 2 | . . . . . 1 . 1 . . Fabnet 2 | . . . . . 1 . 1 . . Repair Stations . | . . . . . . . . . . Recycling Units 3 | . . . . . 1 . 1 1 . Fedlink 3 | . . . . . 1 . 1 1 . Scanalyzers . | . . . . . . . . . . Garrison Access . | . . . . . . . . . . Data Cores Recovered 2 | . 1 . . . 1 . . . . Used . | . . . . . . . . . . Hacking Detections 34 | . 6 . 2 . 11 . 4 9 2 Full Trace Events 4 | . 1 . . . 2 . . . 1 Feedback Events . | . . . . . . . . . . Feedback Blocked . | . . . . . . . . . . Robot Schematics Acquired . | . . . . . . . . . . Robots Built . | . . . . . . . . . . Authchips . | . . . . . . . . . . Time . | . . . . . . . . . . Total Robot Build Rating . | . . . . . . . . . . Part Schematics Acquired . | . . . . . . . . . . Parts Built . | . . . . . . . . . . Authchips . | . . . . . . . . . . Time . | . . . . . . . . . . Total Part Build Rating . | . . . . . . . . . . Parts Repaired 3 | . 1 . . . . . 1 . 1 Time 159 | . 26 . . . . . 44 . 89 Parts Recycled . | . . . . . . . . . . Recycled Matter . | . . . . . . . . . . Retrieved Matter . | . . . . . . . . . . Retrieved Components . | . . . . . . . . . . Parts Scanalyzed . | . . . . . . . . . . Part Schematics Acquired . | . . . . . . . . . . Parts Damaged . | . . . . . . . . . . Bothacking | -11 -10 -10 -9 -9 -6 -6 -6 -5 -4 ------------ Run | Yrd Mat Sub Rec Scr Fac Was Fac Fac Fac Used RIF Installer . | . . . . . . . . . . Robots Hacked 2 | . . . . . . . . 2 . Non-combat . | . . . . . . . . . . Combat 2 | . . . . . . . . 2 . Robot Hacks Applied . | . . . . . . . . . . Relay Couplers Released 2 | . . . . . 2 . . . . Machine Destruction 2 | . . . . . 2 . . . . Fabnet Peak Effective % 6 | . . . . . . . . 6 2 Autooverrided 2 | . . . . . . . . 2 . Robots Rewired 9 | . . . 9 . . . . . . Allies Hacked . | . . . . . . . . . . Hacks Repelled . | . . . . . . . . . . Allies | -11 -10 -10 -9 -9 -6 -6 -6 -5 -4 -------- Run | Yrd Mat Sub Rec Scr Fac Was Fac Fac Fac Total Allies 13 | . . . 9 . 1 1 . 2 . Largest Group 9 | . . . 9 2 2 1 . 1 . Highest-Rated Group 101 | . . . 101 54 69 31 . 29 . Highest-Rated Ally 69 | . . . 27 27 69 31 . 29 . Total Orders 9 | . . . 7 . 2 . . . . STAY 6 | . . . 5 . 1 . . . . FOLLOW 2 | . . . 2 . . . . . . GUARD 1 | . . . . . 1 . . . . Ally Attacks 81 | . . . 15 . 51 9 . 6 . Total Damage 1498 | . . . 143 . 1134 106 . 115 . Kills 14 | . . . 4 . 10 . . . . Allies Corrupted . | . . . . . . . . . . Allies Melted 1 | . . . . 1 . . . . . Intel | -11 -10 -10 -9 -9 -6 -6 -6 -5 -4 ------- Run | Yrd Mat Sub Rec Scr Fac Was Fac Fac Fac Active Infowar (turns) 4575 | 23 358 . . . 3705 59 . 430 . Optics 3418 | . . . . . 3418 . . . . Sensors 443 | . . . . . 384 59 . . . Seismic 381 | 23 358 . . . . . . . . Jamming 1931 | . . . . . 1846 . . 85 . ECM 345 | . . . . . . . . 345 . Robot Analysis Total 4 | . . . . 4 . . . . . Derelict Logs Recovered 6 | . . 1 . 5 . . . . . Drone Launches . | . . . . . . . . . . Drone Recoveries . | . . . . . . . . . . Exploration | -11 -10 -10 -9 -9 -6 -6 -6 -5 -4 ------------- Run | Yrd Mat Sub Rec Scr Fac Was Fac Fac Fac Turns Passed 15072 | 115 1639 2223 1063 3553 4160 125 865 1143 186 Spaces Moved 8094 | 57 770 952 438 1624 1887 125 908 1144 189 Core 272 | 3 . . . . . 107 162 . . Treads 883 | 54 609 . . . 206 14 . . . Legs . | . . . . . . . . . . Wheels 5911 | . 161 952 438 1624 1681 4 520 531 . Hover 802 | . . . . . . . . 613 189 Flight 226 | . . . . . . . 226 . . Fastest Speed 15 | 50 160 150 200 200 125 50 35 15 24 Average Speed 158 | 154 171 204 213 215 178 77 72 72 36 Slowest Speed 260 | 160 215 215 215 230 260 243 105 100 38 Overloaded Moves 118 | . . . . . . . . 94 24 Propulsion Burnouts . | . . . . . . . . . . Robots Hopped 6 | . . . . . . . 6 . . Potential Cave-ins 4 | . . . . . . . . 4 . Cave-ins Triggered . | . . . . . . . . . . Exploration Rate (%) 53 | 5 97 45 86 91 46 94 27 38 8 Regions Visited 9 Branch Regions 3 Pre-discovered Areas 3 | . . 1 . 1 . . 1 . . Known Exits Taken 2 | . . . . 1 . . 1 . . Unknown Exits Taken 5 | 1 1 1 1 . . . . 1 . Scrap Searched 5 | . . 2 . 3 . . . . . Spaces Dug 83 | . . 5 . . 43 . 8 26 1 Terrain Destroyed 214 | . . 8 . . 166 . 13 26 1 Melee 55 | . . . . . 20 . 8 26 1 Projectile 14 | . . 8 . . 1 . 5 . . AOE 145 | . . . . . 145 . . . . Terrain Rammed . | . . . . . . . . . . Walls Destroyed . | . . . . . . . . . . Machines Disabled . | . . . . . . . . . . Actions | -11 -10 -10 -9 -9 -6 -6 -6 -5 -4 --------- Run | Yrd Mat Sub Rec Scr Fac Was Fac Fac Fac Total 9572 | 72 983 1078 556 1681 2410 143 1032 1324 293 Wait 457 | . 79 10 6 10 171 8 50 33 90 Move 8076 | 56 769 951 437 1623 1887 124 897 1143 189 Hop 4 | . . . . . . . 4 . . Pick Up 135 | 4 33 14 1 20 51 1 3 6 2 Fast Attach 81 | 7 5 1 2 2 14 2 21 24 3 Attach 35 | . 2 5 . 1 22 1 2 1 1 Detach 20 | . 1 2 1 . 9 . 2 5 . Swap 82 | . 7 16 . . 48 . 6 5 . Drop 130 | . 20 16 2 21 53 1 2 15 . Fire 299 | 5 65 63 7 4 127 6 21 1 . Melee 131 | . . . . . 26 . 24 73 8 Ram 1 | . 1 . . . . . . . . Kick . | . . . . . . . . . . Crush 3 | . 1 . . . 2 . . . . Escape Stasis 18 | . . . . . . . . 18 . Rewire 100 | . . . 100 . . . . . . Trap . | . . . . . . . . . . Miscellaneous . | . . . . . . . . . . Route ------- -11/Scrapyard -10/Materials (discovered 6 exits: [*Mat x3] / [*Min x2] / *Sub) -10/Subcaves (discovered 2 exits: [*Mat] / *Rec) -9/Recycling -9/Scraptown (discovered 2 exits: *Fac x2) -6/Factory (discovered 5 exits: *Fac x2 / *Low / Ext x2) -6/Waste -6/Factory (discovered 8 exits: *Fac x4 / Low x2 / Ext x2) -5/Factory (discovered 4 exits: *Fac x2 / Upp x2) -4/Factory History --------- Turn | Location | Event 34 | -11/Scrapyard | Discovered new exit (range 15) 116 | -11/Scrapyard | Entered Materials 116 | -10/Materials | Discovered new exit (range 7) 301 | -10/Materials | Build established: Mutant 644 | -10/Materials | Repaired Lgt. Treads 668 | -10/Materials | Discovered new exit (range 7) 711 | -10/Materials | Discovered new exit (range 11) 1105 | -10/Materials | Discovered new exit (range 5) 1300 | -10/Materials | Discovered new exit (range 15) 1653 | -10/Materials | Discovered new exit (range 11) 1755 | -10/Materials | Entered Subcaves 2089 | -10/Subcaves | Shifting Twisted Machinery released Mak. Light Armor Plating 2146 | -10/Subcaves | Learned location of Mines (-8) 2245 | -10/Subcaves | Shifting Twisted Machinery released Spk. Treads 2591 | -10/Subcaves | Discovered new exit (range 16) 2670 | -10/Subcaves | Shifting Twisted Machinery released Sub. Laser 2673 | -10/Subcaves | Shifting Twisted Machinery released Battle Rifle 2778 | -10/Subcaves | Core integrity fell below 50% 3072 | -10/Subcaves | Discovered new exit (range 7) 3187 | -10/Subcaves | Core integrity fell below 20% 3526 | -10/Subcaves | Visited 4L-MR0's lab 3555 | -10/Subcaves | Found Power Bank 3978 | -10/Subcaves | Entered Recycling 4985 | -9/Recycling | Scanned before Scraplab entrance 5001 | -9/Recycling | Build established: Commander-Mutant 5017 | -9/Recycling | Entered Scraplab 5035 | -9/Recycling | Discovered new exit (range 3) 5041 | -9/Recycling | Entered Scraptown 5041 | -9/Scraptown | Accompanied by 2 allies 5343 | -9/Scraptown | Build established: Mutant 5547 | -9/Scraptown | Scanned Subdweller tech in exchange for log data 5551 | -9/Scraptown | Learned location of 1 exit from Factory 5553 | -9/Scraptown | Learned Factory garrison access intel 5555 | -9/Scraptown | Learned Research trap positions 5557 | -9/Scraptown | Learned Factory security intel 6293 | -9/Scraptown | Visited Cyclists 6351 | -9/Scraptown | Visited Awakened 6407 | -9/Scraptown | Visited The Evicted 6461 | -9/Scraptown | Visited Fellowship of the Rings 6523 | -9/Scraptown | Visited Symbiants 6607 | -9/Scraptown | Visited Science Testing Area 6680 | -9/Scraptown | Visited Shadow of the Wyrm 7077 | -9/Scraptown | Visited UFD Registry 7077 | -9/Scraptown | Registered with UFD as "Gammamind" 7169 | -9/Scraptown | Entered Cyclist Reading Room 7298 | -9/Scraptown | Visited Science Guys 7408 | -9/Scraptown | Visited Botcube Research 7426 | -9/Scraptown | Found Botcube 7504 | -9/Scraptown | Visited Observation Area 7616 | -9/Scraptown | Visited Derelict Rescue Squad 7638 | -9/Scraptown | Found DRS Beacon 7708 | -9/Scraptown | Visited Analyses Database 7755 | -9/Scraptown | Visited Supply Room 7817 | -9/Scraptown | Visited Junk Cannon Lab 7946 | -9/Scraptown | Met Optimus 7946 | -9/Scraptown | Accepted into 0bPrime 8263 | -9/Scraptown | Civil war broke out across Scraptown 8400 | -9/Scraptown | Identified exit to Factory 8594 | -9/Scraptown | Entered Factory 8594 | -6/Factory | Accompanied by 2 allies 8594 | -6/Factory | Evolved 8 slots: Propulsion x2, Utility x6 8595 | -6/Factory | Identified exit to Extension 8598 | -6/Factory | Loaded intel: 4 garrison access locations 8882 | -6/Factory | Build established: Scavenger-Mutant 9348 | -6/Factory | Found Prototype Launcher 9592 | -6/Factory | Identified Scatter Rocket Array 10359 | -6/Factory | Botcube activated 10381 | -6/Factory | Botcube completed mutation into treaded form, armed with 2 guns. 10853 | -6/Factory | Discovered new exit (range 13) 10946 | -6/Factory | Identified exit to Factory 11033 | -6/Factory | Loaded intel: 8 recycling unit locations 11248 | -6/Factory | Build established: Mutant 11361 | -6/Factory | Discovered new exit (range 21) 11398 | -6/Factory | Identified exit to Lower Caves 11744 | -6/Factory | First assault squad dispatched 11759 | -6/Factory | Destroyed 7 combat bots 12126 | -6/Factory | Discovered exit to Factory (range 20) 12165 | -6/Factory | Lost 3 parts (1n2u) 12660 | -6/Factory | Lost 3 parts (1n2u) 12754 | -6/Factory | Sucked down chute 12754 | -6/Factory | Entered Waste 12755 | -6/Waste | Met a frightened Derelict 12769 | -6/Waste | EMP discharged 12769 | -6/Waste | System corruption reached 10% 12786 | -6/Waste | Spotted C-40 Crusher 12801 | -6/Waste | Crushed by Compactor (1 part destroyed, 1 dropped) 12813 | -6/Waste | Crushed by Compactor (1 part destroyed, 1 dropped) 12813 | -6/Waste | Released all parts (7) 12832 | -6/Waste | Spotted C-40 Crusher 12840 | -6/Waste | Spotted C-40 Crusher 12844 | -6/Waste | Lost 5 parts (3n1u1w) 12850 | -6/Waste | Crushed by Compactor (1 part destroyed, 1 dropped) 12853 | -6/Waste | Spotted C-40 Crusher 12860 | -6/Waste | Spotted C-40 Crusher 12866 | -6/Waste | Spotted C-40 Crusher 12869 | -6/Waste | EMP discharged 12871 | -6/Waste | Discovered new exit (range 16) 12879 | -6/Waste | Entered Factory 13127 | -6/Factory | Core integrity fell below 50% 13151 | -6/Factory | Loaded intel: 8 recycling unit locations 13151 | -6/Factory | Learned location of Protoforge (-2) 13731 | -6/Factory | Repaired Arm. Huge Wheel 13744 | -6/Factory | Entered another Factory area 13744 | -5/Factory | Evolved 2 slots: Propulsion x2 14030 | -5/Factory | Identified exit to Upper Caves 14214 | -5/Factory | Loaded intel: 8 recycling unit locations 14240 | -5/Factory | Garrison activated, responded to threat 14316 | -5/Factory | Destroyed 7 combat bots 14368 | -5/Factory | System corruption reached 10% 14385 | -5/Factory | Lost 4 parts (1p3n) 14406 | -5/Factory | Attached Power Bank, gained temporary slots: Power x3 14476 | -5/Factory | Discovered new exit (range 5) 14885 | -5/Factory | Discovered new exit (range 9) 14887 | -5/Factory | Entered another Factory area 14887 | -4/Factory | Evolved 2 slots: Power x1, Utility x1 14916 | -4/Factory | Lost 6 parts (3p1n2u) 15016 | -4/Factory | Repaired Cld. Gravmag System 15073 | -4/Factory | Self-destructed Last Messages --------------- 15016_ Repair station completes Cld. Gravmag System repairs. 15016_ Acquired Cld. Gravmag System. 15022_ S-27 Virus suffers critical hit (Smash). 15022_ S-27 Virus destroyed. 15026_ S-27 Virus suffers critical hit (Smash). 15026_ Destroyed VTOL Module. 15026_ S-27 Virus system corrupted by crushing effect. 15026_ VTOL Module fried. 15026_ S-27 Virus destroyed. 15029_ Destroyed VTOL Module. 15029_ S-27 Virus system corrupted by crushing effect. 15029_ S-27 Virus knocked back. 15031_ Acquired 25 matter. 15037_ S-27 Virus suffers critical hit (Smash). 15037_ S-27 Virus destroyed. 15041_ Acquired Lgt. Nuclear Core. 15043_ Acquired 20 matter. 15072_ Connecting with Garrison Access... 15072_ ALERT: Suspicious activity at Garrison Access F001. Dispatching Investigation squad. Map ----- +----------------------------------------------------+ | ???????????????????????????????? | | ???????????????????????????????? | | ???????????????????????????????? | | ???????????????????????????????? | | ???????????????????????????????? | | ???????????????????????????????? | | ???????????????????????????????? | | ???????????????????????????????? | | ???????????????????????????????? | | ???????????????????????????????? | | ???????? ???????????????????? | | ???????? !!!??????????????????? | | ??????? !! ????????????????? | | ???????# !! ???????????????? | | ???????# ????????????????? | | ???????# ????????????????? | | ???????# ??""????????????? | | ???????# ? """???????????? | | ???????# """ """???????????? | | ???????# """ F"???????????? | | ???????# """ """???????????? | | ???????# ggg ""????????????? | | ?#####?# " " ##????????????? | | # # "G" T#????????????? | | # !! # " #????????????? | | #! ! @ ##????????????? | | # # #?????????????? | | # ## #######?????????????? | | # ??# #???????????????????? | | ######??# #???????????????????? | | ????????# #?????????? ????????? | | ????????# #????????? #???????? | | ????????# #???##### #???????? | | ??####### #### #???????? | | ??# # #???????? | | ??# # #???????? | | ??# # !! ##????????? | | ??# # !! #?????????? | | ??# # !! #?????????? | | ??### ### " " +?????????? | | ????# " ] " #?????????? | | ????# " " #?????????? | | ????# " " #?????????? | | ????# " " #?????????? | | ????# " " ###???????? | | ????# " " ???????? | | ????# " " ??????? | | ????# " " ???????? | | ????# ??????? | | ????# ??????? | +----------------------------------------------------+ Best States ------------- Heat Dissipation 67 Energy Generation 56 Energy Capacity 510 Matter Stores 300 Matter Capacity 300 Sight Range 22 Robot Scan Range 16 Terrain Scan Density 10 ECM Strength 1 Jamming Range 12 Armor Coverage 600 Resistance: KI 25 Core Shielding 20 Utility Shielding 66 Weapon Cycling 30 Melee Speed Boost 20 Evasion (%) 69 Targeting Accuracy 24 Melee Accuracy 32 Recoil Reduction 4 Offensive Hacking 21 Defensive Hacking 12 Item Schematics ----------------- None Robot Schematics ------------------ None Fabricated ------------ Nothing Repaired ---------- Lgt. Treads | 32% | -10/Materials Arm. Huge Wheel | 56% | -6/Factory Cld. Gravmag System | 13% | -4/Factory Alien Tech Used ----------------- None Achievements -------------- None Challenges ------------ None Game ------ Seed HardenedMolecularNeutralizer Manual? 0 Play Time 02:43:55 Cumulative 147.0 hours Start 2025.05.12 @ 23:01:42 End 2025.05.13 @ 12:02:51 Sessions 3 Manual Loads 0 Difficulty Rogue Special Mode None Game No. 99 Rogue 99 Adventurer 0 Explorer 0 Win Type - Total 6 Types 5/0/1/0/0/0/0/0/0/0 Lore% 58 Gallery% 56 Achievement% 52 Wizard Run 0 Options --------- Layout 0 ASCII 0 Keyboard 1 Movement Numpad Keybinds 0 Fullscreen 1 Font 24/Proggy Map View 76x56 Zoom Use 0% Tactical HUD 1 Map Filters NONE Filters NONE Steam 1 RUN: 98a3c8e3-fd43-4ad3-afca-d7c9ec5a2596